[Event "Late-Titled-Tuesday-Blitz-February-13-2024"]
[Site "Chess.com"]
[Date "2024.02.13"]
[Round "9"]
[White "AryanTari"]
[Black "Szparu"]
[Result "0-1"]
[WhiteElo "2939"]
[BlackElo "2806"]
[TimeControl "180+1"]
[EndTime "15:42:35 PST"]
[Termination "Szparu won by resignation"]

1. e4 {[%clk 0:02:56.9]} 1... e6 {[%clk 0:02:51.9]} 2. d4 {[%clk 0:02:55.2]}
2... d5 {[%clk 0:02:52.1]} 3. exd5 {[%clk 0:02:55.7]} 3... exd5 {[%clk
0:02:52.4]} 4. Nf3 {[%clk 0:02:56.4]} 4... Nf6 {[%clk 0:02:53]} 5. Bd3 {[%clk
0:02:56.5]} 5... c5 {[%clk 0:02:53.1]} 6. O-O {[%clk 0:02:54.7]} 6... c4 {[%clk
0:02:53.1]} 7. Re1+ {[%clk 0:02:55.1]} 7... Be7 {[%clk 0:02:53.8]} 8. Bf1 {[%clk
0:02:55.6]} 8... O-O {[%clk 0:02:54.4]} 9. b3 {[%clk 0:02:56.2]} 9... cxb3
{[%clk 0:02:55.3]} 10. axb3 {[%clk 0:02:56.6]} 10... Nc6 {[%clk 0:02:56.2]} 11.
c3 {[%clk 0:02:51.5]} 11... h6 {[%clk 0:02:52.9]} 12. b4 {[%clk 0:02:51]} 12...
Bd6 {[%clk 0:02:53.3]} 13. h3 {[%clk 0:02:50]} 13... Bf5 {[%clk 0:02:49.1]} 14.
Bd3 {[%clk 0:02:47.5]} 14... Ne4 {[%clk 0:02:46.9]} 15. b5 {[%clk 0:02:37.7]}
15... Ne7 {[%clk 0:02:45.5]} 16. c4 {[%clk 0:02:37.5]} 16... Re8 {[%clk
0:02:39.3]} 17. c5 {[%clk 0:02:28.4]} 17... Bc7 {[%clk 0:02:35.5]} 18. Qc2
{[%clk 0:02:10]} 18... Ng6 {[%clk 0:02:35]} 19. Nc3 {[%clk 0:02:04.5]} 19... Nh4
{[%clk 0:02:22.8]} 20. Nxh4 {[%clk 0:00:36]} 20... Qxh4 {[%clk 0:02:22.5]} 21.
Nxd5 {[%clk 0:00:11.5]} 21... Nxf2 {[%clk 0:02:22.4]} 22. Bg5 {[%clk 0:00:07.6]}
22... Nxh3+ {[%clk 0:02:03.1]} 23. gxh3 {[%clk 0:00:05.5]} 23... Rxe1+ {[%clk
0:01:58.2]} 24. Rxe1 {[%clk 0:00:04.9]} 24... Qxe1+ {[%clk 0:01:58.5]} 25. Kg2
{[%clk 0:00:03.7]} 25... Qg3+ {[%clk 0:01:47.3]} 0-1

[Event "Late-Titled-Tuesday-Blitz-February-13-2024"]
[Site "Chess.com"]
[Date "2024.02.13"]
[Round "9"]
[White "dretch"]
[Black "Bigfish1995"]
[Result "0-1"]
[WhiteElo "2892"]
[BlackElo "3165"]
[TimeControl "180+1"]
[EndTime "15:42:53 PST"]
[Termination "Bigfish1995 won on time"]

1. d4 {[%clk 0:03:00.9]} 1... Nf6 {[%clk 0:02:58]} 2. c4 {[%clk 0:03:01]} 2...
e6 {[%clk 0:02:58.2]} 3. Nc3 {[%clk 0:03:01.4]} 3... Bb4 {[%clk 0:02:58.6]} 4.
Qc2 {[%clk 0:03:01.5]} 4... O-O {[%clk 0:02:57.3]} 5. e4 {[%clk 0:02:59.9]} 5...
c5 {[%clk 0:02:46.8]} 6. e5 {[%clk 0:02:58.6]} 6... Ne8 {[%clk 0:02:42.1]} 7. a3
{[%clk 0:02:54.8]} 7... Bxc3+ {[%clk 0:02:37.1]} 8. bxc3 {[%clk 0:02:54.5]} 8...
cxd4 {[%clk 0:02:36.7]} 9. cxd4 {[%clk 0:02:54.5]} 9... d6 {[%clk 0:02:37.5]}
10. Nf3 {[%clk 0:02:49.6]} 10... dxe5 {[%clk 0:02:31.5]} 11. dxe5 {[%clk
0:02:49.6]} 11... Nc6 {[%clk 0:02:32.2]} 12. Bd3 {[%clk 0:02:47.1]} 12... Nxe5
{[%clk 0:02:27.2]} 13. Bxh7+ {[%clk 0:02:34.3]} 13... Kh8 {[%clk 0:02:27.4]} 14.
Be4 {[%clk 0:02:34.4]} 14... Qa5+ {[%clk 0:02:21.3]} 15. Bd2 {[%clk 0:02:21.7]}
15... Nxf3+ {[%clk 0:02:18.6]} 16. gxf3 {[%clk 0:02:22.6]} 16... Qh5 {[%clk
0:02:16.3]} 17. Rb1 {[%clk 0:02:00.1]} 17... f5 {[%clk 0:02:12.3]} 18. Bd3
{[%clk 0:01:56.2]} 18... Bd7 {[%clk 0:02:09.9]} 19. Rxb7 {[%clk 0:01:42.6]}
19... Qxf3 {[%clk 0:02:07.3]} 20. Rxd7 {[%clk 0:01:38.4]} 20... Qxh1+ {[%clk
0:02:06.8]} 21. Ke2 {[%clk 0:01:39]} 21... Nf6 {[%clk 0:02:05.6]} 22. Rd4 {[%clk
0:01:26.7]} 22... Ng4 {[%clk 0:01:58.9]} 23. c5 {[%clk 0:00:30.4]} 23... e5
{[%clk 0:01:49.9]} 24. Rxg4 {[%clk 0:00:26.3]} 24... fxg4 {[%clk 0:01:49.5]} 25.
Be3 {[%clk 0:00:11.1]} 25... Qxh2 {[%clk 0:01:45.9]} 26. Qc4 {[%clk 0:00:10.4]}
26... g3 {[%clk 0:01:43.2]} 27. c6 {[%clk 0:00:02.7]} 27... Rxf2+ {[%clk
0:01:34.8]} 0-1

[Event "Late-Titled-Tuesday-Blitz-February-13-2024"]
[Site "Chess.com"]
[Date "2024.02.13"]
[Round "9"]
[White "traviscottofficial"]
[Black "lucliasco"]
[Result "0-1"]
[WhiteElo "2680"]
[BlackElo "2847"]
[TimeControl "180+1"]
[EndTime "15:43:02 PST"]
[Termination "lucliasco won by resignation"]

1. d4 {[%clk 0:02:59.8]} 1... Nf6 {[%clk 0:02:59.8]} 2. c4 {[%clk 0:02:59.5]}
2... e6 {[%clk 0:03:00.7]} 3. Nc3 {[%clk 0:02:59.3]} 3... d5 {[%clk 0:03:01.6]}
4. cxd5 {[%clk 0:02:59.2]} 4... Bb4 {[%clk 0:03:02]} 5. Qa4+ {[%clk 0:02:55.6]}
5... c6 {[%clk 0:02:46.4]} 6. Qxb4 {[%clk 0:02:53.8]} 6... exd5 {[%clk
0:02:47.3]} 7. Nf3 {[%clk 0:02:51.3]} 7... a5 {[%clk 0:02:46]} 8. Qb3 {[%clk
0:02:49.2]} 8... O-O {[%clk 0:02:46.6]} 9. Bf4 {[%clk 0:02:47.6]} 9... Bf5
{[%clk 0:02:44.6]} 10. e3 {[%clk 0:02:42.6]} 10... b5 {[%clk 0:02:42.6]} 11.
Bxb8 {[%clk 0:02:36.4]} 11... Qxb8 {[%clk 0:02:40.2]} 12. Ne5 {[%clk 0:02:33.6]}
12... Qd6 {[%clk 0:02:37.8]} 13. Be2 {[%clk 0:02:28.8]} 13... a4 {[%clk
0:02:35.9]} 14. Qd1 {[%clk 0:02:29.2]} 14... a3 {[%clk 0:02:34.7]} 15. b3 {[%clk
0:02:24.9]} 15... b4 {[%clk 0:02:35.3]} 16. Na4 {[%clk 0:02:23.8]} 16... Rxa4
{[%clk 0:02:32.5]} 17. bxa4 {[%clk 0:02:24]} 17... c5 {[%clk 0:02:33.4]} 18. O-O
{[%clk 0:02:16.8]} 18... Ne4 {[%clk 0:02:29.7]} 19. dxc5 {[%clk 0:02:03.4]}
19... Qxe5 {[%clk 0:02:29]} 20. Qd4 {[%clk 0:02:03.5]} 20... Qxd4 {[%clk
0:02:26.7]} 21. exd4 {[%clk 0:02:04.4]} 21... Nc3 {[%clk 0:02:27.5]} 22. Bb5
{[%clk 0:02:03.9]} 22... Rb8 {[%clk 0:02:25.2]} 23. Rfc1 {[%clk 0:01:54.1]}
23... Kf8 {[%clk 0:02:21.5]} 24. g4 {[%clk 0:01:44.7]} 24... Be4 {[%clk
0:02:16.8]} 25. f3 {[%clk 0:01:36.7]} 25... Bxf3 {[%clk 0:02:15.1]} 26. Rxc3
{[%clk 0:01:37.3]} 26... bxc3 {[%clk 0:02:16]} 27. Rc1 {[%clk 0:01:37.5]} 27...
Bxg4 {[%clk 0:02:14.8]} 28. Rxc3 {[%clk 0:01:37.7]} 28... Ke7 {[%clk 0:02:15.3]}
29. Rxa3 {[%clk 0:01:37.9]} 29... Bf5 {[%clk 0:02:12.6]} 30. Rb3 {[%clk
0:01:32.1]} 30... Bc2 {[%clk 0:02:10.1]} 31. Re3+ {[%clk 0:01:32]} 31... Be4
{[%clk 0:02:08.3]} 32. Kf2 {[%clk 0:01:25.9]} 32... f5 {[%clk 0:02:03.4]} 33.
Rc3 {[%clk 0:01:18.4]} 33... g5 {[%clk 0:02:00.9]} 34. c6 {[%clk 0:01:15.3]}
34... Kd6 {[%clk 0:02:01.2]} 35. a5 {[%clk 0:01:14.8]} 35... Rxb5 {[%clk
0:01:57.7]} 36. c7 {[%clk 0:01:14.3]} 36... Rb2+ {[%clk 0:01:57.9]} 37. Ke1
{[%clk 0:01:11]} 37... Rb1+ {[%clk 0:01:57.9]} 38. Kf2 {[%clk 0:00:37.2]} 38...
Rb2+ {[%clk 0:01:57.7]} 39. Kg3 {[%clk 0:00:35.2]} 39... h5 {[%clk 0:01:43.4]}
40. Rc6+ {[%clk 0:00:30.1]} 40... Ke7 {[%clk 0:01:43.5]} 41. Re6+ {[%clk
0:00:27.3]} 41... Kd7 {[%clk 0:01:43.8]} 0-1

[Event "Late-Titled-Tuesday-Blitz-February-13-2024"]
[Site "Chess.com"]
[Date "2024.02.13"]
[Round "9"]
[White "BardArtem"]
[Black "ahmedkandiliii"]
[Result "1-0"]
[WhiteElo "2767"]
[BlackElo "2562"]
[TimeControl "180+1"]
[EndTime "15:43:07 PST"]
[Termination "BardArtem won by resignation"]

1. e4 {[%clk 0:03:00.9]} 1... e5 {[%clk 0:02:42]} 2. Nf3 {[%clk 0:02:59.6]} 2...
Nc6 {[%clk 0:02:41.1]} 3. Bc4 {[%clk 0:02:57.5]} 3... Nf6 {[%clk 0:02:40.3]} 4.
d3 {[%clk 0:02:56.8]} 4... Be7 {[%clk 0:02:39.6]} 5. Nc3 {[%clk 0:02:53.8]} 5...
d6 {[%clk 0:02:36.5]} 6. h3 {[%clk 0:02:53.2]} 6... Na5 {[%clk 0:02:35.5]} 7.
Bg5 {[%clk 0:02:48.3]} 7... Nxc4 {[%clk 0:02:34.2]} 8. dxc4 {[%clk 0:02:49.2]}
8... O-O {[%clk 0:02:34.2]} 9. Qd2 {[%clk 0:02:43.2]} 9... Be6 {[%clk
0:02:28.5]} 10. Bxf6 {[%clk 0:02:33.5]} 10... Bxf6 {[%clk 0:02:28.1]} 11. Nd5
{[%clk 0:02:34.4]} 11... g6 {[%clk 0:01:49.6]} 12. O-O-O {[%clk 0:02:29.5]}
12... Bg7 {[%clk 0:01:47.9]} 13. h4 {[%clk 0:02:22.2]} 13... h5 {[%clk
0:01:42.4]} 14. Ng5 {[%clk 0:02:20.1]} 14... Bd7 {[%clk 0:01:37.8]} 15. Ne3
{[%clk 0:02:08.9]} 15... Qe7 {[%clk 0:00:57.8]} 16. c5 {[%clk 0:01:59.5]} 16...
Bc6 {[%clk 0:00:28]} 17. cxd6 {[%clk 0:01:55.9]} 17... Qd7 {[%clk 0:00:28.1]}
18. dxc7 {[%clk 0:01:51.2]} 18... Qxc7 {[%clk 0:00:29]} 19. Nd5 {[%clk
0:01:51.5]} 19... Bxd5 {[%clk 0:00:24.3]} 20. Qxd5 {[%clk 0:01:52.4]} 20... Rfd8
{[%clk 0:00:23.8]} 21. Qb3 {[%clk 0:01:52.2]} 21... b6 {[%clk 0:00:22.1]} 22. a3
{[%clk 0:01:49.6]} 22... Qc5 {[%clk 0:00:21.9]} 23. Qxf7+ {[%clk 0:01:48.2]}
23... Kh8 {[%clk 0:00:20.1]} 24. Qxg6 {[%clk 0:01:48.2]} 24... Kg8 {[%clk
0:00:12.5]} 25. Qf7+ {[%clk 0:01:38.9]} 25... Kh8 {[%clk 0:00:11.9]} 26. Qxh5+
{[%clk 0:01:39.8]} 26... Kg8 {[%clk 0:00:12.1]} 27. Qh7+ {[%clk 0:01:39.1]}
27... Kf8 {[%clk 0:00:12.4]} 28. Qf5+ {[%clk 0:01:37.5]} 28... Kg8 {[%clk
0:00:11.1]} 29. Qe6+ {[%clk 0:01:37.8]} 29... Kh8 {[%clk 0:00:09.9]} 30. Rxd8+
{[%clk 0:01:37.1]} 30... Rxd8 {[%clk 0:00:09.1]} 31. Nf7+ {[%clk 0:01:37.3]}
31... Kh7 {[%clk 0:00:06.1]} 32. Nxd8 {[%clk 0:01:38.2]} 32... Qxf2 {[%clk
0:00:06]} 33. Qf5+ {[%clk 0:01:38.1]} 33... Qxf5 {[%clk 0:00:05.8]} 34. exf5
{[%clk 0:01:38.8]} 34... Bh6+ {[%clk 0:00:05.9]} 35. Kd1 {[%clk 0:01:38.8]} 1-0

[Event "Late-Titled-Tuesday-Blitz-February-13-2024"]
[Site "Chess.com"]
[Date "2024.02.13"]
[Round "9"]
[White "SouS007"]
[Black "ArtemDyachuk"]
[Result "0-1"]
[WhiteElo "2497"]
[BlackElo "2629"]
[TimeControl "180+1"]
[EndTime "15:43:07 PST"]
[Termination "ArtemDyachuk won on time"]

1. e4 {[%clk 0:03:00.9]} 1... c5 {[%clk 0:03:00.4]} 2. Nf3 {[%clk 0:03:00.7]}
2... d6 {[%clk 0:03:01]} 3. d4 {[%clk 0:03:00.6]} 3... cxd4 {[%clk 0:03:01.9]}
4. Nxd4 {[%clk 0:03:01.3]} 4... Nf6 {[%clk 0:03:02.4]} 5. Nc3 {[%clk 0:03:01.8]}
5... a6 {[%clk 0:03:03]} 6. Bg5 {[%clk 0:03:01.3]} 6... Nbd7 {[%clk 0:03:01.3]}
7. f4 {[%clk 0:03:01.2]} 7... Qc7 {[%clk 0:03:01.6]} 8. Qf3 {[%clk 0:02:59.7]}
8... g6 {[%clk 0:02:59.4]} 9. O-O-O {[%clk 0:02:56.8]} 9... Bg7 {[%clk 0:03:00]}
10. Kb1 {[%clk 0:02:45.4]} 10... O-O {[%clk 0:02:58.4]} 11. Nb3 {[%clk
0:02:37.8]} 11... b5 {[%clk 0:02:58.3]} 12. Bd3 {[%clk 0:02:23.8]} 12... Bb7
{[%clk 0:02:57.2]} 13. Qh3 {[%clk 0:02:21.7]} 13... b4 {[%clk 0:02:54.4]} 14.
Nd5 {[%clk 0:02:21.1]} 14... Nxd5 {[%clk 0:02:54.6]} 15. exd5 {[%clk 0:02:21.2]}
15... Nf6 {[%clk 0:02:55.2]} 16. f5 {[%clk 0:02:15.5]} 16... Nxd5 {[%clk
0:02:54]} 17. Bh6 {[%clk 0:02:06.2]} 17... Nf6 {[%clk 0:02:50.7]} 18. Bxg7
{[%clk 0:02:01.5]} 18... Kxg7 {[%clk 0:02:51.6]} 19. g4 {[%clk 0:02:01.6]} 19...
Bxh1 {[%clk 0:02:50.2]} 20. Rxh1 {[%clk 0:01:57.5]} 20... d5 {[%clk 0:02:50.3]}
21. g5 {[%clk 0:01:55.9]} 21... Ne4 {[%clk 0:02:50.6]} 22. Qh6+ {[%clk
0:01:44.2]} 22... Kh8 {[%clk 0:02:50.8]} 23. Bxe4 {[%clk 0:01:41.3]} 23... dxe4
{[%clk 0:02:51.7]} 24. h4 {[%clk 0:01:37.3]} 24... Qe5 {[%clk 0:02:49.2]} 25. f6
{[%clk 0:01:35.2]} 25... exf6 {[%clk 0:02:47.7]} 26. gxf6 {[%clk 0:01:29.8]}
26... Qxf6 {[%clk 0:02:47.5]} 27. h5 {[%clk 0:01:29.9]} 27... Qg7 {[%clk
0:02:45.1]} 28. Qf4 {[%clk 0:01:24.7]} 28... g5 {[%clk 0:02:43.8]} 29. Qxe4
{[%clk 0:01:22.4]} 29... f5 {[%clk 0:02:43.9]} 30. Qxb4 {[%clk 0:01:17.9]} 30...
h6 {[%clk 0:02:44.2]} 31. a3 {[%clk 0:01:10]} 31... f4 {[%clk 0:02:42.4]} 32.
Re1 {[%clk 0:01:02]} 32... f3 {[%clk 0:02:41.4]} 33. Re7 {[%clk 0:01:00.7]}
33... f2 {[%clk 0:02:39.8]} 34. Nd2 {[%clk 0:00:47.5]} 34... f1=Q+ {[%clk
0:02:39.9]} 35. Nxf1 {[%clk 0:00:47.9]} 35... Rxf1+ {[%clk 0:02:39.8]} 36. Ka2
{[%clk 0:00:48.5]} 36... Rf7 {[%clk 0:02:40.7]} 37. Re6 {[%clk 0:00:45.7]} 37...
Rb7 {[%clk 0:02:41.2]} 38. Rb6 {[%clk 0:00:38]} 38... Rxb6 {[%clk 0:02:39.3]}
39. Qxb6 {[%clk 0:00:38.9]} 39... g4 {[%clk 0:02:38.4]} 40. Qc6 {[%clk
0:00:38.3]} 40... Rg8 {[%clk 0:02:38.9]} 41. Qxa6 {[%clk 0:00:35.2]} 41... g3
{[%clk 0:02:39.8]} 42. Qb6 {[%clk 0:00:29.9]} 42... g2 {[%clk 0:02:40.7]} 43.
Qg1 {[%clk 0:00:29.8]} 43... Qf7+ {[%clk 0:02:40.7]} 44. b3 {[%clk 0:00:29.5]}
44... Qf1 {[%clk 0:02:41.6]} 45. Qd4+ {[%clk 0:00:25.1]} 45... Rg7 {[%clk
0:02:41]} 46. Qd6 {[%clk 0:00:15.7]} 46... g1=Q {[%clk 0:02:34.4]} 47. Qxh6+
{[%clk 0:00:15.8]} 47... Kg8 {[%clk 0:02:35.3]} 48. Qe6+ {[%clk 0:00:15.7]}
48... Qf7 {[%clk 0:02:33.7]} 49. Qc8+ {[%clk 0:00:16]} 49... Kh7 {[%clk
0:02:33.9]} 50. h6 {[%clk 0:00:14.8]} 50... Kxh6 {[%clk 0:02:33.7]} 51. Qc3
{[%clk 0:00:13.4]} 51... Qff1 {[%clk 0:02:31.3]} 52. a4 {[%clk 0:00:08]} 52...
Qb1+ {[%clk 0:02:29.6]} 53. Ka3 {[%clk 0:00:08.6]} 53... Qa1+ {[%clk 0:02:30.5]}
54. Qxa1 {[%clk 0:00:06.3]} 54... Qxa1+ {[%clk 0:02:31.4]} 55. Kb4 {[%clk
0:00:06.8]} 55... Qd4+ {[%clk 0:02:31.8]} 56. c4 {[%clk 0:00:06.8]} 56... Qd6+
{[%clk 0:02:32.7]} 57. c5 {[%clk 0:00:06.8]} 57... Rg4+ {[%clk 0:02:33.2]} 58.
Kb5 {[%clk 0:00:03]} 58... Qb8+ {[%clk 0:02:34.1]} 59. Ka5 {[%clk 0:00:02.7]}
59... Rg6 {[%clk 0:02:35]} 0-1

[Event "Late-Titled-Tuesday-Blitz-February-13-2024"]
[Site "Chess.com"]
[Date "2024.02.13"]
[Round "9"]
[White "kibromNNN"]
[Black "Boninknights"]
[Result "0-1"]
[WhiteElo "1816"]
[BlackElo "2367"]
[TimeControl "180+1"]
[EndTime "15:43:17 PST"]
[Termination "Boninknights won on time"]

1. d4 {[%clk 0:03:00.9]} 1... Nf6 {[%clk 0:02:58.6]} 2. c4 {[%clk 0:03:01]} 2...
e6 {[%clk 0:02:57.7]} 3. Nc3 {[%clk 0:03:00.9]} 3... Bb4 {[%clk 0:02:56.4]} 4.
Qc2 {[%clk 0:03:01.1]} 4... c5 {[%clk 0:02:54.9]} 5. dxc5 {[%clk 0:03:00.3]}
5... Bxc5 {[%clk 0:02:54.8]} 6. Nf3 {[%clk 0:02:59.2]} 6... Nc6 {[%clk
0:02:53.2]} 7. g3 {[%clk 0:02:56.9]} 7... d5 {[%clk 0:02:46.6]} 8. cxd5 {[%clk
0:02:53.2]} 8... exd5 {[%clk 0:02:46.3]} 9. Bg2 {[%clk 0:02:52.2]} 9... O-O
{[%clk 0:02:41.9]} 10. O-O {[%clk 0:02:50.4]} 10... d4 {[%clk 0:02:37.8]} 11.
Na4 {[%clk 0:02:39.1]} 11... Be7 {[%clk 0:02:28.4]} 12. Rd1 {[%clk 0:02:37.7]}
12... Bg4 {[%clk 0:02:25.5]} 13. Nc5 {[%clk 0:02:25.9]} 13... Rc8 {[%clk
0:02:14.9]} 14. Bf4 {[%clk 0:01:52.5]} 14... Nb4 {[%clk 0:02:10.5]} 15. Qb3
{[%clk 0:01:19]} 15... Bxc5 {[%clk 0:02:06.4]} 16. e3 {[%clk 0:01:08.9]} 16...
Bxf3 {[%clk 0:01:56.2]} 17. Bxf3 {[%clk 0:01:07.8]} 17... Qb6 {[%clk 0:01:55.1]}
18. a3 {[%clk 0:01:00.2]} 18... Nc6 {[%clk 0:01:52.3]} 19. Qxb6 {[%clk
0:00:55.5]} 19... Bxb6 {[%clk 0:01:51.5]} 20. exd4 {[%clk 0:00:53.9]} 20... Nxd4
{[%clk 0:01:49.8]} 21. Bxb7 {[%clk 0:00:51.9]} 21... Rc2 {[%clk 0:01:47.3]} 22.
Bd2 {[%clk 0:00:19.1]} 22... Ng4 {[%clk 0:01:37.8]} 23. h3 {[%clk 0:00:16.3]}
23... Nb3 {[%clk 0:01:25]} 24. Ra2 {[%clk 0:00:08.2]} 24... Nxf2 {[%clk
0:01:21.1]} 25. Kf1 {[%clk 0:00:06.3]} 25... Nxd2+ {[%clk 0:01:18.8]} 0-1

[Event "Late-Titled-Tuesday-Blitz-February-13-2024"]
[Site "Chess.com"]
[Date "2024.02.13"]
[Round "9"]
[White "Canal_Showdrez"]
[Black "jinxy2009"]
[Result "1-0"]
[WhiteElo "2082"]
[BlackElo "2220"]
[TimeControl "180+1"]
[EndTime "15:43:18 PST"]
[Termination "Canal_Showdrez won by checkmate"]

1. d4 {[%clk 0:01:14.8]} 1... d5 {[%clk 0:02:56.4]} 2. Nf3 {[%clk 0:01:15]} 2...
Nf6 {[%clk 0:02:55.8]} 3. e3 {[%clk 0:01:15.4]} 3... Bf5 {[%clk 0:02:52.3]} 4.
c4 {[%clk 0:01:14.7]} 4... e6 {[%clk 0:02:52.3]} 5. Qb3 {[%clk 0:01:13.9]} 5...
Qc8 {[%clk 0:02:39.2]} 6. Nc3 {[%clk 0:01:12.1]} 6... c6 {[%clk 0:02:38.8]} 7.
Ne5 {[%clk 0:01:11.4]} 7... Nbd7 {[%clk 0:02:38.5]} 8. f4 {[%clk 0:01:09.8]}
8... Bd6 {[%clk 0:02:38.2]} 9. c5 {[%clk 0:01:08.6]} 9... Bc7 {[%clk 0:02:37.6]}
10. Bd2 {[%clk 0:01:02.4]} 10... O-O {[%clk 0:02:37.3]} 11. Be2 {[%clk
0:01:00.6]} 11... Nxe5 {[%clk 0:02:34]} 12. fxe5 {[%clk 0:01:00]} 12... Ne4
{[%clk 0:02:34.6]} 13. Nxe4 {[%clk 0:01:00]} 13... Bxe4 {[%clk 0:02:35.5]} 14.
O-O {[%clk 0:00:58]} 14... Bd8 {[%clk 0:02:31.6]} 15. Bd3 {[%clk 0:00:54.9]}
15... Bxd3 {[%clk 0:02:30.7]} 16. Qxd3 {[%clk 0:00:54.4]} 16... Bg5 {[%clk
0:02:31.1]} 17. Rf3 {[%clk 0:00:53.2]} 17... b6 {[%clk 0:02:26.5]} 18. b4 {[%clk
0:00:47.3]} 18... a5 {[%clk 0:02:24.1]} 19. cxb6 {[%clk 0:00:44.5]} 19... axb4
{[%clk 0:02:21.7]} 20. Bxb4 {[%clk 0:00:44.4]} 20... Re8 {[%clk 0:02:20.5]} 21.
a4 {[%clk 0:00:40.5]} 21... Bd8 {[%clk 0:02:05.7]} 22. Raf1 {[%clk 0:00:35.2]}
22... Rxa4 {[%clk 0:01:55.2]} 23. Bc5 {[%clk 0:00:28.8]} 23... Qb7 {[%clk
0:01:44]} 24. Qe2 {[%clk 0:00:18]} 24... Bxb6 {[%clk 0:01:39.2]} 25. Qf2 {[%clk
0:00:18]} 25... Bxc5 {[%clk 0:01:38.7]} 26. Rxf7 {[%clk 0:00:17.2]} 26... Qb3
{[%clk 0:01:12.4]} 27. Rxg7+ {[%clk 0:00:15.8]} 27... Kxg7 {[%clk 0:01:11.4]}
28. Qf7+ {[%clk 0:00:16]} 28... Kh6 {[%clk 0:01:04.2]} 29. Rf6+ {[%clk
0:00:15.3]} 29... Kg5 {[%clk 0:01:04.5]} 30. Qg7+ {[%clk 0:00:15.4]} 30... Kh4
{[%clk 0:01:04.8]} 31. Rh6# {[%clk 0:00:15.7]} 1-0

[Event "Late-Titled-Tuesday-Blitz-February-13-2024"]
[Site "Chess.com"]
[Date "2024.02.13"]
[Round "9"]
[White "KaydenTroffChess"]
[Black "GoldenShare"]
[Result "1-0"]
[WhiteElo "2824"]
[BlackElo "2555"]
[TimeControl "180+1"]
[EndTime "15:43:38 PST"]
[Termination "KaydenTroffChess won by resignation"]

1. d4 {[%clk 0:02:59.8]} 1... d5 {[%clk 0:02:56.1]} 2. Nf3 {[%clk 0:03:00.1]}
2... Nf6 {[%clk 0:02:56.1]} 3. Bf4 {[%clk 0:03:00.1]} 3... c5 {[%clk 0:02:56.3]}
4. e3 {[%clk 0:03:00.5]} 4... Nc6 {[%clk 0:02:57.2]} 5. Nc3 {[%clk 0:03:00.8]}
5... a6 {[%clk 0:02:56.7]} 6. dxc5 {[%clk 0:03:01]} 6... e6 {[%clk 0:02:57.2]}
7. Na4 {[%clk 0:03:01.3]} 7... Bxc5 {[%clk 0:02:57.6]} 8. Nxc5 {[%clk
0:03:01.1]} 8... Qa5+ {[%clk 0:02:57.9]} 9. c3 {[%clk 0:03:01.6]} 9... Qxc5
{[%clk 0:02:58.8]} 10. Bd3 {[%clk 0:03:00.1]} 10... O-O {[%clk 0:02:58.8]} 11.
O-O {[%clk 0:03:00.2]} 11... Qe7 {[%clk 0:02:49.3]} 12. Ne5 {[%clk 0:03:00.4]}
12... Nxe5 {[%clk 0:02:49.5]} 13. Bxe5 {[%clk 0:03:01.3]} 13... Nd7 {[%clk
0:02:50]} 14. Bg3 {[%clk 0:02:56.8]} 14... b6 {[%clk 0:02:49.5]} 15. e4 {[%clk
0:02:56.7]} 15... Bb7 {[%clk 0:02:49.4]} 16. Re1 {[%clk 0:02:49.4]} 16... dxe4
{[%clk 0:02:46.2]} 17. Bxe4 {[%clk 0:02:46]} 17... Bxe4 {[%clk 0:02:47.1]} 18.
Rxe4 {[%clk 0:02:30.7]} 18... Nc5 {[%clk 0:02:46.6]} 19. Bd6 {[%clk 0:02:22.6]}
19... Qb7 {[%clk 0:02:37]} 20. Rd4 {[%clk 0:02:17.5]} 20... Rfc8 {[%clk
0:02:29.5]} 21. Qg4 {[%clk 0:02:01.7]} 21... f5 {[%clk 0:02:12.6]} 22. Qe2
{[%clk 0:01:55.8]} 22... Qf7 {[%clk 0:02:01.5]} 23. Rad1 {[%clk 0:01:49.8]}
23... h6 {[%clk 0:01:28.3]} 24. Be5 {[%clk 0:01:38.6]} 24... Ra7 {[%clk
0:01:21.5]} 25. Rd6 {[%clk 0:01:20.6]} 25... b5 {[%clk 0:01:13.9]} 26. f3 {[%clk
0:01:15.4]} 26... Rd7 {[%clk 0:01:10]} 27. Qe3 {[%clk 0:01:08.4]} 27... Rxd6
{[%clk 0:01:03.4]} 28. Rxd6 {[%clk 0:01:07.8]} 28... Na4 {[%clk 0:00:50.6]} 29.
Rxa6 {[%clk 0:01:02.6]} 29... Nxb2 {[%clk 0:00:48.6]} 30. Ra7 {[%clk 0:01:01.6]}
30... Nc4 {[%clk 0:00:47.9]} 31. Qd4 {[%clk 0:00:47]} 31... Nxe5 {[%clk
0:00:18]} 32. Rxf7 {[%clk 0:00:46.4]} 32... Nxf7 {[%clk 0:00:18.9]} 33. Qd7
{[%clk 0:00:46.5]} 33... Rxc3 {[%clk 0:00:18.6]} 34. Qe8+ {[%clk 0:00:46.2]} 1-0

[Event "Late-Titled-Tuesday-Blitz-February-13-2024"]
[Site "Chess.com"]
[Date "2024.02.13"]
[Round "9"]
[White "FredddieCroderg"]
[Black "amiqu"]
[Result "1-0"]
[WhiteElo "2280"]
[BlackElo "2146"]
[TimeControl "180+1"]
[EndTime "15:43:38 PST"]
[Termination "FredddieCroderg won on time"]

1. e4 {[%clk 0:03:00.9]} 1... e5 {[%clk 0:02:49.8]} 2. Bc4 {[%clk 0:02:56.1]}
2... Nf6 {[%clk 0:02:48.4]} 3. Qf3 {[%clk 0:02:41]} 3... Nc6 {[%clk 0:02:37]} 4.
c3 {[%clk 0:02:40.6]} 4... d6 {[%clk 0:02:36.5]} 5. h3 {[%clk 0:02:39.6]} 5...
Be6 {[%clk 0:02:32.7]} 6. d3 {[%clk 0:02:37.5]} 6... Qd7 {[%clk 0:02:31.2]} 7.
g4 {[%clk 0:02:33.3]} 7... h6 {[%clk 0:02:29.3]} 8. Ne2 {[%clk 0:02:29.4]} 8...
d5 {[%clk 0:02:01.6]} 9. Bb3 {[%clk 0:02:23.5]} 9... O-O-O {[%clk 0:01:54.7]}
10. Nd2 {[%clk 0:02:18.3]} 10... Bc5 {[%clk 0:01:48.6]} 11. Ng3 {[%clk
0:02:13.6]} 11... dxe4 {[%clk 0:01:22.9]} 12. dxe4 {[%clk 0:02:07.6]} 12... Qd3
{[%clk 0:01:06.7]} 13. Qxd3 {[%clk 0:02:05.9]} 13... Rxd3 {[%clk 0:01:07.1]} 14.
Nf5 {[%clk 0:01:59.8]} 14... g6 {[%clk 0:00:55.4]} 15. Bxe6+ {[%clk 0:01:34.8]}
15... fxe6 {[%clk 0:00:56.3]} 16. Ne3 {[%clk 0:01:33.1]} 16... Bxe3 {[%clk
0:00:37]} 17. fxe3 {[%clk 0:01:32.3]} 17... Rxe3+ {[%clk 0:00:36.5]} 18. Kf2
{[%clk 0:01:31.1]} 18... Rd3 {[%clk 0:00:36.8]} 19. Ke2 {[%clk 0:01:30.3]} 19...
Rd7 {[%clk 0:00:34.6]} 20. Rf1 {[%clk 0:01:27.8]} 20... Ne8 {[%clk 0:00:24.6]}
21. Nc4 {[%clk 0:01:23.6]} 21... Nd6 {[%clk 0:00:24.8]} 22. Nxd6+ {[%clk
0:01:21.8]} 22... cxd6 {[%clk 0:00:24.6]} 23. Rf6 {[%clk 0:01:19.4]} 23... h5
{[%clk 0:00:17.9]} 24. g5 {[%clk 0:01:17.5]} 24... d5 {[%clk 0:00:11.6]} 25. Bd2
{[%clk 0:01:11.8]} 25... dxe4 {[%clk 0:00:09.2]} 26. Raf1 {[%clk 0:01:08.6]}
26... Rg8 {[%clk 0:00:07.6]} 27. Rf8+ {[%clk 0:01:06.5]} 27... Rxf8 {[%clk
0:00:02.5]} 28. Rxf8+ {[%clk 0:01:05.4]} 28... Kc7 {[%clk 0:00:02.7]} 29. Rf6
{[%clk 0:01:01]} 29... Rd3 {[%clk 0:00:02.2]} 30. Be3 {[%clk 0:01:00.2]} 1-0